fUST/lending_fUST_20251018
["ID","MTS","AMOUNT","RATE_DAILY","PERIOD"]
[391722454,1760750774753,-500.0,0.00026224,2]
[391722455,1760750774943,-500.0,0.00026224,2]
[391722456,1760750774974,-500.0,0.00026224,2]
[391722457,1760750775003,-500.0,0.00026224,2]
[391722458,1760750775033,-500.0,0.00026224,2]
[391722459,1760750775065,-500.0,0.00026224,2]
[391722460,1760750775096,-500.0,0.00026224,2]
[391722461,1760750775126,-200.0,0.00026224,2]
[391722462,1760750776174,-24.0908584,0.00026225,2]
[391722463,1760750776192,-500.0,0.00026225,2]
[391722464,1760750776207,-0.01,0.00026225,2]
[391722465,1760750776227,-500.0,0.00026225,2]
[391722466,1760750776241,-500.0,0.00026225,2]
[391722467,1760750776263,-500.0,0.00026225,2]
[391722468,1760750776277,-500.0,0.00026225,2]
[391722469,1760750776290,-500.0,0.00026225,2]
[391722470,1760750776304,-500.0,0.00026225,2]
[391722471,1760750776318,-200.0,0.00026225,2]
[391722472,1760750776331,-3600.01,0.00026225,2]
[391722473,1760750776351,-10000.01,0.00026225,2]
[391722474,1760750776365,-10000.01,0.00026225,2]
[391722475,1760750777798,-10000.01,0.00026225,2]
[391722476,1760750778079,-10000.01,0.00026225,2]
[391722477,1760750778227,-10000.01,0.00026225,2]
[391722478,1760750778386,-10000.01,0.00026225,2]
[391722479,1760750780836,-2378.07,0.00026224,2]
[391722480,1760750780876,-5243.87,0.00026225,2]
[391722481,1760750781054,-10000.01,0.00026225,2]
[391722482,1760750781298,-10000.01,0.00026225,2]
[391722483,1760750781371,-10000.01,0.00026225,2]
[391722484,1760750781519,-511.1824626,0.00026225,2]
[391722485,1760750781661,-8977.6450748,0.00026225,2]
[391722486,1760750781748,1101.960991,0.00013699,2]
[391722487,1760750782109,-10000.01,0.00026225,2]
[391722488,1760750783745,-1101.960991,0.00020187,2]
[391722489,1760750783774,-115.4855643,0.00026225,2]
[391722490,1760750783810,-7565.1168894,0.00026225,2]
[391722491,1760750783891,-500.0,0.00026234,2]
[391722492,1760750783920,-432.7712458,0.00026234,2]
[391722493,1760750783950,-219.84414593,0.00026234,2]
[391722494,1760750784025,-7694.77921654,0.00026235,2]
[391722495,1760750784054,-10000.01,0.00026235,2]
[391722496,1760750784105,-10000.01,0.00026235,2]
[391722497,1760750786767,-291.88,0.00026225,10]
[391722498,1760750786806,-9416.25,0.00026235,2]
[391722499,1760750786849,-10000.01,0.00026235,2]
[391722500,1760750786974,-10000.01,0.00026235,2]
[391722501,1760750787081,-10000.01,0.00026235,2]
[391722502,1760750787198,-10000.01,0.00026235,2]
[391722503,1760750817431,5000.0,0.00025205,2]
[391722504,1760750818100,-153.0,0.0002547,2]
[391722505,1760750818122,-64.5,0.0002547,2]
[391722506,1760750819653,-88.5,0.0002547,2]
[391722507,1760750821150,150.0,0.00019351,2]
[391722508,1760750821547,150.0,0.00020272,2]
[391722509,1760750822038,150.0,0.00021194,2]
[391722510,1760750822422,-294.85477171,0.00025205,2]
[391722511,1760750822455,54.47489234,0.00022115,2]
[391722512,1760750822478,95.52510766,0.00022115,2]
[391722513,1760750822851,150.0,0.00023037,2]
[391722514,1760750823330,170.44,0.00023958,2]
[391722515,1760750823744,198.84,0.0002488,2]
[391722516,1760750833143,151.999999,0.0002904,120]
[391722517,1760750836881,3935.20489234,0.00021978,2]
[391722518,1760750836905,797.75096422,0.00021978,2]
[391722519,1760750839331,5785.88091092,0.0002198,2]
[391722520,1760750840677,178.24,0.00025205,2]
[391722521,1760750840701,3416.37812486,0.00025205,2]
[391722522,1760750840725,1405.38187514,0.00025205,2]
[391722523,1760750862282,8594.62812486,0.000199,2]
[391722524,1760750862307,10000.01,0.000199,2]
[391722525,1760750862329,1703.53483359,0.000199,2]
[391722526,1760750863712,617.41186946,0.00025205,2]
[391722527,1760750869394,7679.06329695,0.00018,2]
[391722528,1760750869417,10000.01,0.00018,2]
[391722529,1760750869440,10000.01,0.00018,2]
[391722530,1760750869465,10000.01,0.00018,2]
[391722531,1760750869491,10000.01,0.00018,2]
[391722532,1760750869515,10000.01,0.00018,2]
[391722533,1760750869538,10000.01,0.00018,2]
[391722534,1760750869562,10000.01,0.00018,2]
[391722535,1760750869585,10000.01,0.00018,2]
[391722536,1760750869611,468.08036434,0.00018,2]
[391722537,1760750879369,9531.92963566,0.00024774,2]
[391722538,1760750889712,-5000.0,0.00024526,2]
[391722539,1760750891343,0.01,0.00019205,5]
[391722540,1760750891366,475.02064376,0.00019205,5]
[391722541,1760750894041,150.0,0.0001943,2]
[391722542,1760750894514,150.0,0.00020355,2]
[391722543,1760750894942,208.92,0.0002128,2]
[391722544,1760750895443,278.56,0.00022205,2]
[391722545,1760750895942,348.2,0.0002313,2]
[391722546,1760750896107,5000.0,0.00024526,2]
[391722547,1760750896520,417.84,0.00024056,2]
[391722548,1760750896613,2971.46935624,0.00021985,2]
[391722549,1760750896634,1716.63863598,0.00021985,2]
[391722550,1760750896970,8283.37136402,0.00021982,2]
[391722551,1760750896992,10000.01,0.00021982,2]
[391722552,1760750897014,10000.01,0.00021982,2]
[391722553,1760750897037,3375.67778398,0.00021982,2]
[391722554,1760750901542,-1045.280731,0.00024774,2]
[391722556,1760750903644,-174.47272705,0.00024774,2]
[391722557,1760750904738,-4092.26845739,0.00024774,2]
[391722558,1760750905371,-1815.47308522,0.00024774,2]
[391722559,1760750907567,278.88458108,0.0002,2]
[391722560,1760750909336,417.15472785,0.00024526,2]
[391722561,1760750910114,1640.91044436,0.0002,2]
[391722562,1760750912508,4032.11407627,0.00024774,2]
[391722563,1760750912531,967.88592373,0.00024774,2]
[391722564,1760750912565,473.85362686,0.00022,5]
[391722566,1760750916606,-158.8042301,0.000248,4]
[391722568,1760750918798,-195.0,0.000248,4]
[391722569,1760750920186,5000.0,0.00024774,2]
[391722570,1760750920227,216.27966408,0.0002,2]
[391722571,1760750922314,410.00004202,0.000275,120]
[391722572,1760750924460,3341.99078533,0.00024142,2]
[391722573,1760750924483,10000.01,0.00024142,2]
[391722574,1760750924506,7438.81475778,0.00024142,2]
[391722575,1760750929168,-1389.17969993,0.000248,4]
[391722576,1760750929204,300.0,0.000199,2]
[391722577,1760750935285,-487.48,0.00024981,2]
[391722578,1760750938091,-5000.0,0.000248,2]
[391722579,1760750944119,-300.0,0.000199,2]
[391722580,1760750944148,-300.0,0.00024999,2]
[391722581,1760750947214,-5000.0,0.00019701,2]
[391722582,1760750950138,-397.2234,0.00025,2]
[391722583,1760750953855,-2156.9867139,0.00025,2]
[391722584,1760750954009,-10000.01,0.00025,2]
[391722585,1760750954092,-3989.90998251,0.00025,2]
[391722586,1760750954121,-781.13768828,0.00025,2]
[391722587,1760750954162,-457.91465842,0.00025,2]
[391722588,1760750954217,-1789.872894,0.00025,2]
[391722589,1760750954262,300.0,0.000199,2]
[391722590,1760750960994,5000.0,0.00025,2]
[391722591,1760750967037,300.0,0.000199,2]
[391722592,1760750969289,5000.0,0.00025205,2]
[391722593,1760750971884,150.0,0.00019506,2]
[391722594,1760750972231,300.0,0.000248,2]
[391722595,1760750972303,150.0,0.00020435,2]
[391722596,1760750972708,150.0,0.00021364,2]
[391722597,1760750973217,189.93,0.00022293,2]
[391722598,1760750973612,237.41,0.00023222,2]
[391722599,1760750974019,284.89,0.00024151,2]
[391722600,1760750974512,332.38,0.0002508,2]
[391722601,1760750977082,2905.4,0.00024107,2]
[391722602,1760750977105,2094.6,0.00024107,2]
[391722603,1760750977255,3178.09618532,0.00019773,2]
[391722604,1760750984958,4727.31381468,0.00025205,2]
[391722605,1760750984980,272.68618532,0.00025205,2]
[391722606,1760750985960,300.0,0.000248,2]
[391722607,1760750986416,300.0,0.000199,2]
[391722608,1760750993210,4021.17059651,0.00025205,2]
[391722609,1760750996071,-543.0448467,0.00025205,2]
[391722610,1760750996098,-900.0,0.00025469,3]
[391722611,1760750996128,-153.0,0.0002547,2]
[391722612,1760750996156,-153.0,0.0002547,2]
[391722613,1760750996192,-153.0,0.0002547,2]
[391722614,1760750996221,-168.0,0.00025544,2]
[391722615,1760750996248,-624.5015737,0.00025805,2]
[391722616,1760750996275,-524.73497885,0.00026,2]
[391722617,1760750996787,-3367.60041967,0.00026,2]
[391722618,1760750996799,-10000.01,0.00026,2]
[391722619,1760750996815,-6532.38958033,0.00026,2]
[391722620,1760750996824,-379.86,0.00026009,2]
[391722621,1760750996833,-457.76,0.00026141,10]
[391722622,1760750996842,-381.46,0.00026141,10]
[391722623,1760750996852,-517.20633202,0.0002615,2]
[391722624,1760750998740,10000.01,0.00025204,2]
[391722625,1760750998761,3153.23071288,0.00025204,2]
[391722626,1760750999604,300.0,0.000248,2]
[391722627,1760751001269,300.0,0.0002615,2]
[391722628,1760751002045,300.0,0.0002615,2]
[391722629,1760751002080,300.0,0.0002615,2]
[391722630,1760751002662,300.0,0.0002615,2]
[391722631,1760751002922,1200.0,0.0002615,2]
[391722632,1760751004584,339.48,0.00026141,10]
[391722633,1760751008772,3807.29928712,0.00026151,2]
[391722634,1760751008798,1192.70071288,0.00026151,2]
[391722635,1760751016722,164.334482,0.00025587,2]
[391722636,1760751016893,-8642.97480512,0.00026151,2]
[391722637,1760751017799,282.9,0.00026141,10]
[391722639,1760751022952,-9717.11,0.00026151,2]
[391722640,1760751025708,172.361395,0.00029041,120]
[391722641,1760751031623,5000.0,0.00026151,2]
[391722646,1760751031816,235.75,0.00026141,10]
[391722702,1760751032328,502.75320702,0.0002615,2]
[391722705,1760751032353,240.84333693,0.0002615,2]
[391722707,1760751032838,-358.19098001,0.00026151,2]
[391722708,1760751033541,500.0,0.0002615,2]
[391722709,1760751033574,500.0,0.0002615,2]
[391722710,1760751033611,500.0,0.0002615,2]
[391722711,1760751033642,500.0,0.0002615,2]
[391722712,1760751033675,380.72826117,0.0002615,2]
[391722713,1760751033699,119.27173883,0.0002615,2]
[391722714,1760751033735,500.0,0.0002615,2]
[391722715,1760751033769,500.0,0.0002615,2]
[391722716,1760751033800,500.0,0.0002615,2]
[391722717,1760751033832,500.0,0.0002615,2]
[391722718,1760751033863,500.0,0.0002615,2]
[391722719,1760751033892,500.0,0.0002615,2]
[391722720,1760751033929,500.0,0.0002615,2]
[391722721,1760751033959,500.0,0.0002615,2]
[391722722,1760751033998,500.0,0.0002615,2]
[391722723,1760751034030,500.0,0.0002615,2]
[391722724,1760751034065,500.0,0.0002615,2]
[391722725,1760751034092,500.0,0.0002615,2]
[391722726,1760751034135,500.0,0.0002615,2]
[391722727,1760751034175,500.0,0.0002615,2]
[391722728,1760751034211,500.0,0.0002615,2]
[391722729,1760751034244,500.0,0.0002615,2]
[391722730,1760751034298,500.0,0.0002615,2]
[391722731,1760751034334,500.0,0.0002615,2]
[391722732,1760751034521,500.0,0.0002615,2]
[391722733,1760751034553,380.73826117,0.0002615,2]
[391722734,1760751034576,119.26173883,0.0002615,2]
[391722735,1760751034606,500.0,0.0002615,2]
[391722736,1760751034640,500.0,0.0002615,2]
[391722737,1760751034686,500.0,0.0002615,2]
[391722738,1760751034730,500.0,0.0002615,2]
[391722739,1760751034766,500.0,0.0002615,2]
[391722740,1760751034801,500.0,0.0002615,2]
[391722741,1760751034844,500.0,0.0002615,2]
[391722742,1760751034875,500.0,0.0002615,2]
[391722743,1760751034915,500.0,0.0002615,2]
[391722744,1760751034955,543.4287611,0.0002615,2]
[391722809,1760751041731,-3e-08,0.00026151,2]
[391722815,1760751044596,500.0,0.0002615,2]
[391722817,1760751045298,196.46,0.00026141,10]
[391722820,1760751046716,150.0,0.00019453,2]
[391722821,1760751047212,150.0,0.00020379,2]
[391722822,1760751047785,150.0,0.00021305,2]
[391722823,1760751048005,150.0,0.00022232,2]
[391722824,1760751048428,150.0,0.00023158,2]
[391722825,1760751048813,150.32,0.00024084,2]
[391722826,1760751049383,175.38,0.00025011,2]
[391722827,1760751049706,500.0,0.0002615,2]
[391722828,1760751049845,200.43,0.00025937,2]
[391722829,1760751053851,500.0,0.0002615,2]
[391722830,1760751054647,1864.72950007,0.00026151,2]
[391722831,1760751054670,3135.27049993,0.00026151,2]
[391722832,1760751058218,1050.8123903,0.00025587,2]
[391722833,1760751058453,500.0,0.0002615,2]
[391722834,1760751059277,163.72,0.00026141,10]
[391722835,1760751059898,200.61478719,0.00025819,2]
[391722836,1760751061762,500.0,0.0002615,2]
[391722837,1760751062629,300.0,0.0002615,2]
[391722838,1760751063951,500.0,0.0002615,2]
[391722839,1760751067257,500.0,0.0002615,2]
[391722840,1760751073274,818.61,0.00026141,10]
[391722841,1760751077377,2330.98232258,0.00026151,2]
[391722842,1760751077399,2669.01767742,0.00026151,2]
[391722843,1760751081554,500.0,0.0002615,2]
[391722844,1760751084552,261.67418492,0.0002615,2]
[391722845,1760751084646,1578.37,0.00026141,3]
[391722846,1760751086193,500.0,0.0002615,2]
[391722847,1760751088735,541.37,0.0002615,2]
[391722848,1760751092504,1000.0,0.00026151,2]
[391722849,1760751093837,1000.0,0.00026151,2]
[391722850,1760751094962,1010.58006188,0.00026151,2]
[391722851,1760751095291,789.19,0.00026141,3]
[391722852,1760751095778,-1823.49044815,0.00026151,2]
[391722853,1760751096516,149.80807578,0.0002615,2]
[391722854,1760751096537,350.19192422,0.0002615,2]
[391722855,1760751098539,2407.0,0.0002904,120]
[391722856,1760751100566,1712.95217385,0.0002607,2]
[391722857,1760751100762,5000.0,0.00026151,2]
[391722858,1760751102122,315.139,0.00026151,12]
[391722859,1760751102314,184.03626781,0.00026151,12]
[391722860,1760751104850,485.26150199,0.0002615,2]
[391722861,1760751106146,394.59,0.00026141,3]
[391722862,1760751109185,500.0,0.0002615,2]
[391722863,1760751116841,197.3,0.00026141,3]
[391722864,1760751119108,150.0,0.00019456,2]
[391722865,1760751119899,150.0,0.00020382,2]
[391722866,1760751119963,150.0,0.00021309,2]
[391722867,1760751120427,150.0,0.00022235,2]
[391722868,1760751120519,200.37510652,0.00033867,120]
[391722869,1760751121284,927.24,0.0002904,120]
[391722870,1760751122579,260.53913213,0.0002615,2]
[391722871,1760751122615,39.46086787,0.0002615,2]
[391722872,1760751123623,253.94385988,0.0002615,2]
[391722873,1760751124111,5000.0,0.00026151,2]
[391722874,1760751124184,500.0,0.000253,2]
[391722876,1760751127469,591.9,0.00026141,3]
[391722877,1760751128234,485.23767813,0.0002615,2]
[391722878,1760751135159,992.02,0.0002615,2]
[391722879,1760751136813,507.22797385,0.0002615,2]
[391722880,1760751141454,500.0,0.0002615,2]
[391722881,1760751142063,272.5,0.00026141,10]
[391722882,1760751143018,500.0,0.0002615,2]
[391722883,1760751146508,357.71962027,0.0002615,2]
[391722884,1760751146531,142.28037973,0.0002615,2]
[391722885,1760751148104,5000.0,0.00026151,2]
[391722886,1760751149099,260.30258704,0.0002615,2]
[391722887,1760751150156,1200.0,0.0002615,2]
[391722888,1760751152493,500.0,0.0002615,2]
[391722889,1760751153392,2335.01,0.0002615,2]
[391722890,1760751156571,500.0,0.0002615,2]
[391722891,1760751156689,62.41703323,0.0002615,2]
[391722892,1760751156711,437.58296677,0.0002615,2]
[391722894,1760751163868,151.0,0.00026,15]
[391722895,1760751164155,151.0,0.000259,17]
[391722896,1760751164450,462.59771853,0.0002615,2]
[391722897,1760751164478,151.0,0.000258,15]
[391722898,1760751164503,1000.0,0.000258,2]
[391722899,1760751164533,500.0,0.0002615,2]
[391722900,1760751164751,151.0,0.000257,12]
[391722901,1760751165070,151.0,0.000256,14]
[391722902,1760751165356,151.0,0.000255,12]
[391722903,1760751168515,1000.0,0.000258,3]
[391722904,1760751168542,500.0,0.0002615,2]
[391722905,1760751172569,5000.0,0.00026151,2]
[391722906,1760751174764,193.8293147,0.0002615,2]
[391722907,1760751174784,306.1706853,0.0002615,2]
[391722908,1760751175711,500.0,0.0002615,2]
[391722909,1760751177879,497.07726695,0.0002615,2]
[391722910,1760751180868,3491.9,0.0002615,2]
[391722911,1760751181869,500.0,0.0002615,2]
[391722912,1760751182563,300.0,0.0002615,2]
[391722913,1760751185738,150.0,0.00019408,2]
[391722914,1760751185777,150.0,0.0002615,2]
[391722915,1760751186250,150.0,0.00020333,2]
[391722916,1760751186679,150.0,0.00021257,2]
[391722917,1760751188566,3404.10625433,0.00025,2]
[391722918,1760751189282,400.75579342,0.0002615,2]
[391722919,1760751189306,99.24420658,0.0002615,2]
[391722920,1760751190105,201.90190702,0.0002615,2]
[391722921,1760751192342,500.0,0.0002615,2]
[391722922,1760751195824,5000.0,0.00026151,2]
[391722923,1760751195915,4198.8638864,0.00026141,2]
[391722924,1760751195939,10000.01,0.00026141,2]
[391722925,1760751195962,10000.01,0.00026141,2]
[391722926,1760751195987,10000.01,0.00026141,2]
[391722927,1760751196011,10000.01,0.00026141,2]
[391722928,1760751196034,10000.01,0.00026141,2]
[391722929,1760751196057,10000.01,0.00026141,2]
[391722930,1760751196080,10000.01,0.00026141,2]
[391722931,1760751196101,10000.01,0.00026141,2]
[391722932,1760751196122,10000.01,0.00026141,2]
[391722933,1760751218792,5000.0,0.00026141,2]
[391722934,1760751230831,667.94127968,0.0002605,2]
[391722935,1760751235013,192.29876528,0.00024913,2]
[391722936,1760751242286,300.0,0.0002614,2]
[391722937,1760751243487,3839.76995504,0.00026141,2]
[391722938,1760751243509,1160.23004496,0.00026141,2]
[391722939,1760751267106,5000.0,0.00026141,2]
[391722940,1760751271985,351.92724492,0.0002614,2]
[391722941,1760751272049,168.59033585,0.0002614,2]
[391722942,1760751272819,500.0,0.0002614,2]
[391722943,1760751272870,500.0,0.0002614,2]
[391722944,1760751272930,500.0,0.0002614,2]
[391722945,1760751272971,304.34287611,0.0002614,2]
[391722946,1760751290125,1514.91949816,0.00026141,2]
[391722947,1760751290148,3485.08050184,0.00026141,2]
[391722948,1760751302525,300.0,0.0002614,2]
[391722949,1760751313148,5000.0,0.00026141,2]
[391722950,1760751316254,738.71087761,0.00026141,2]
[391722951,1760751323614,476.21862055,0.00026141,2]
[391722952,1760751323637,10000.01,0.00026141,2]
[391722953,1760751323661,10000.01,0.00026141,2]
[391722954,1760751323684,270.02466303,0.00026141,2]
[391722955,1760751328416,500.0,0.00026141,2]
[391722956,1760751333180,256.54524089,0.0002599,2]
[391722957,1760751333658,186.44024294,0.00026141,2]
[391722958,1760751336354,5000.0,0.00026141,2]
[391722959,1760751347231,199.14140566,0.00025678,2]
[391722960,1760751354190,357.05,0.00026141,7]
[391722961,1760751359548,3230.80844748,0.00026141,2]
[391722962,1760751359571,6769.19155252,0.00026141,2]
[391722963,1760751359644,3230.81844748,0.00026141,2]
[391722964,1760751359667,1769.18155252,0.00026141,2]
[391722965,1760751363691,300.0,0.0002614,2]
[391722966,1760751368053,950.69,0.00026141,2]
[391722967,1760751380225,500.0,0.00026141,2]
[391722968,1760751381028,1498.83315211,0.00026041,2]
[391722969,1760751382980,623.84525374,0.00026141,2]
[391722970,1760751386616,2237.72,0.00026141,2]
[391722971,1760751393811,2119.74004163,0.00026141,2]
[391722972,1760751393837,7880.25995837,0.00026141,2]
[391722973,1760751400213,500.0,0.00026141,2]
[391722974,1760751402511,1619.75004163,0.00025539,2]
[391722975,1760751402534,5191.84413617,0.00025539,2]
[391722976,1760751409829,4808.16586383,0.00026141,2]
[391722977,1760751409852,5191.83413617,0.00026141,2]
[391722978,1760751411874,451.88,0.00026131,10]
[391722979,1760751415420,500.0,0.00026141,2]
[391722980,1760751416971,5437.41,0.00033866,60]
[391722981,1760751418802,500.0,0.00026141,2]
[391722982,1760751421446,1472.31642773,0.00033866,120]
[391722983,1760751422239,300.0,0.0002614,2]
[391722984,1760751423797,376.57,0.00026131,10]
[391722985,1760751425289,500.0,0.00026141,2]
[391722986,1760751427600,502.09525737,0.00026141,2]
[391722988,1760751430450,1309.46,0.00026141,2]
[391722989,1760751432341,368.17060646,0.00026141,2]
[391722990,1760751432363,9631.82939354,0.00026141,2]
[391722992,1760751436169,313.81,0.00026131,10]
[391722993,1760751438343,54.37060646,0.00026141,2]
[391722994,1760751438366,445.62939354,0.00026141,2]
[391722995,1760751438731,500.0,0.00026141,2]
[391722996,1760751440511,500.0,0.00026141,2]
[391722997,1760751441823,2289.76,0.00026141,2]
[391722998,1760751444500,6264.62060646,0.00026141,2]
[391722999,1760751444522,3735.37939354,0.00026141,2]
[391723000,1760751448228,511.35,0.00026141,2]
[391723001,1760751455372,288.0,0.00033866,120]
[391723002,1760751457074,10000.0,0.00025205,2]
[391723003,1760751473731,288.0,0.00033866,120]
[391723004,1760751485358,-162.70356344,0.000253,2]
[391723005,1760751487859,-162.17599267,0.000253,2]
[391723006,1760751491246,-63.19797418,0.000253,2]
[391723007,1760751492913,288.0,0.00033866,120]
[391723008,1760751500995,0.01,0.00025205,2]
[391723009,1760751501016,9999.99,0.00025205,2]
[391723010,1760751523538,0.02,0.00025205,2]
[391723011,1760751523560,9999.98,0.00025205,2]
[391723012,1760751525374,261.0,0.00033866,120]
[391723013,1760751537904,417.15472785,0.00025205,2]
[391723014,1760751539581,230.11306546,0.00024913,2]
[391723015,1760751540450,9352.74220669,0.00025205,2]
[391723016,1760751547003,-306.1917954,0.00025205,2]
[391723017,1760751550181,-341.06599791,0.00025205,2]
[391723018,1760751553124,310.021,0.00033866,60]
[391723019,1760751567487,0.03,0.0001551,2]
[391723020,1760751567509,199.97,0.0001551,2]
[391723021,1760751567598,290.64744197,0.000181,2]
[391723022,1760751570289,300.0,0.000252,2]
[391723023,1760751584646,300.0,0.000252,2]
[391723024,1760751595315,8909.39255803,0.00025205,2]
[391723025,1760751595337,1090.60744197,0.00025205,2]
[391723026,1760751597563,300.0,0.000252,2]
[391723027,1760751602969,-299.13220964,0.00025264,2]
[391723028,1760751607136,439.57,0.0002505,8]
[391723029,1760751610871,5000.0,0.00025205,2]
[391723030,1760751620302,-478.17931674,0.00025205,2]
[391723031,1760751623208,300.0,0.000252,2]
[391723032,1760751633378,2869.83255803,0.00025205,2]
[391723033,1760751633401,2130.16744197,0.00025205,2]
[391723034,1760751641767,300.0,0.000252,2]
[391723035,1760751641974,3827.27282143,0.00025205,2]
[391723036,1760751652933,2236.0,0.00025205,2]
[391723037,1760751657249,1506.5697366,0.00025205,2]
[391723038,1760751657272,1029.72163373,0.00025205,2]
[391723039,1760751662610,300.0,0.000252,2]
[391723040,1760751663949,300.0,0.000252,2]
[391723041,1760751695874,8370.28836627,0.00025205,2]
[391723042,1760751695895,1629.71163373,0.00025205,2]
[391723043,1760751696955,5000.0,0.00025205,2]
[391723044,1760751703214,-41.98290797,0.00025205,2]
[391723045,1760751703236,-1100.26969896,0.00025264,2]
[391723046,1760751703257,-1000.0,0.00025412,5]
[391723047,1760751703280,-4264.568386,0.00025425,2]
[391723048,1760751703302,-598.18655841,0.00025805,2]
[391723049,1760751703331,-1311.47900814,0.0002604,2]
[391723050,1760751703362,-445.29418646,0.0002605,2]
[391723051,1760751703384,-421.53,0.00026124,2]
[391723052,1760751703405,-300.0,0.00026129,2]
[391723053,1760751703427,-300.0,0.0002613,2]
[391723054,1760751703450,-1200.0,0.0002613,2]
[391723055,1760751703472,-151.33,0.0002613,10]
[391723056,1760751703494,-986.48,0.00026131,3]
[391723057,1760751703516,-493.24,0.00026131,3]
[391723058,1760751703539,-200.48254179,0.00026139,2]
[391723059,1760751703561,-1200.0,0.0002614,2]
[391723060,1760751703582,-900.45,0.0002614,2]
[391723061,1760751703604,-6507.6534104,0.0002614,2]
[391723062,1760751703627,-500.0,0.0002614,2]
[391723063,1760751703649,-500.0,0.0002614,2]
[391723064,1760751703670,-911.08,0.0002614,2]
[391723065,1760751703692,-342.11413099,0.0002614,2]
[391723066,1760751703713,-500.0,0.0002614,2]
[391723067,1760751703735,-500.0,0.0002614,2]
[391723068,1760751703756,-500.0,0.0002614,2]
[391723069,1760751703777,-500.0,0.0002614,2]
[391723070,1760751703799,-2144.48,0.0002614,2]
[391723071,1760751703821,-500.0,0.0002614,2]
[391723072,1760751703842,-544.57,0.0002614,2]
[391723073,1760751703862,-500.0,0.0002614,2]
[391723074,1760751703885,-3291.84,0.0002614,2]
[391723075,1760751703907,-500.0,0.0002614,2]
[391723076,1760751703927,-500.0,0.0002614,2]
[391723077,1760751703950,-500.0,0.0002614,2]
[391723078,1760751703971,-479.95134121,0.0002614,2]
[391723079,1760751703993,-526.85335236,0.0002614,2]
[391723080,1760751704016,-500.0,0.0002614,2]
[391723081,1760751704037,-69230.580105,0.0002614,2]
[391723082,1760751704059,-512.98778825,0.0002614,2]
[391723083,1760751704081,-1711.46,0.00026141,2]
[391723084,1760751704106,-500.0,0.00026141,2]
[391723085,1760751704128,-1007.57,0.00026141,2]
[391723086,1760751704326,-500.0,0.00026141,2]
[391723087,1760751704352,-500.0,0.00026141,2]
[391723088,1760751704374,-500.0,0.00026141,2]
[391723089,1760751704396,-2280.55,0.00026141,2]
[391723090,1760751704418,-1521.24,0.00026141,2]
[391723091,1760751704441,-982.74,0.00026141,2]
[391723092,1760751704463,-976.12,0.00026141,2]
[391723093,1760751704486,-759.76,0.00026141,2]
[391723094,1760751704509,-500.0,0.00026141,2]
[391723095,1760751704531,-500.0,0.00026141,2]